bitfinex-derivatives/quotes_SOLF0:USTF0_20240926
["timestamp","ask_amount","ask_price","bid_price","bid_amount"]
[1727374488251,15.39,156.29,156.19,15.39]
[1727374488549,3.1995,156.24,156.2,3.2001]
[1727374488848,3.1995,156.24,156.22,9.83]
[1727374489042,11.1479,156.27,156.22,9.83]
[1727374489550,9.83,156.26,156.21,9.83]
[1727374489857,1.3179,156.27,156.14,3.21540186]
[1727374490050,9.83,156.23,156.18,9.83]
[1727374490255,11.1579,156.25,156.2,9.83]
[1727374490455,1.3279,156.25,156.18,15.36]
[1727374490859,3.1996,156.23,156.19,3.2003]
[1727374491151,1.3279,156.25,156.18,15.36]
[1727374491551,3.1998,156.22,156.18,15.36]
[1727374491851,3.1998,156.22,156.18,18.54382974]
[1727374492053,3.2,156.21,156.17,3.2008]
[1727374492249,16.6879,156.25,156.16,15.36]
[1727374492854,15.36,156.23,156.14,15.36]
[1727374493048,1.3598,156.22,156.14,15.36]
[1727374493459,1.2913,156.21,156.15,3.18478998]
[1727374493755,3.2005,156.19,156.15,3.18478998]
[1727374493958,1.2913,156.21,156.14,15.36]
[1727374494148,3.2005,156.19,156.14,18.5613]
[1727374494353,1.2913,156.21,156.14,18.58319951]
[1727374494755,3.2005,156.19,156.15,3.2011]
[1727374495150,1.2913,156.21,156.15,3.2011]
[1727374495359,3.2007,156.18,156.15,3.2011]
[1727374496656,3.2009,156.17,156.14,3.2014]
[1727374497161,3.2008,156.17,156.14,3.2012]
[1727374498160,3.2008,156.17,156.15,3.2012]
[1727374498659,3.2007,156.18,156.15,3.2012]
[1727374498958,3.2007,156.18,156.12,15.36]
[1727374499160,3.2007,156.18,156.12,18.60696464]
[1727374499961,3.2007,156.18,156.15,3.2011]
[1727374500560,1.2547,156.19,156.17,3.2007]
[1727374500852,1.2547,156.19,156.12,18.60696464]
[1727374501054,4.4552,156.19,156.16,3.2009]
[1727374501760,4.4552,156.19,156.17,3.2008]
[1727374502255,1.2547,156.19,156.12,3.24696464]
[1727374502462,15.36,156.18,156.14,3.2013]
[1727374502758,1.2547,156.19,156.1,15.36]
[1727374503061,1.2547,156.19,156.18,3.2006]
[1727374503260,1.2547,156.19,156.1,18.56854204]
[1727374503561,1.2547,156.19,156.18,3.2006]
[1727374504463,1.2913,156.21,156.15,3.21334429]
[1727374504760,1.2913,156.21,156.14,15.36]
[1727374504761,4.4914,156.21,156.18,3.2004]
[1727374505159,1.2913,156.21,156.14,18.50634466]
[1727374506054,1.2913,156.21,156.14,3.14634466]
[1727374506260,1.2913,156.21,156.12,15.36]
[1727374506461,15.36,156.2,156.11,6.60826633]
[1727374506757,3.2007,156.18,156.14,3.2013]
[1727374507057,3.2007,156.18,156.1,18.63792257]
[1727374507058,3.2007,156.18,156.15,3.2012]
[1727374507461,19.23,156.27,156.15,15.36]
[1727374507652,19.1695,156.26,156.19,3.2003]
[1727374508251,3.1999,156.22,156.19,3.2003]
[1727374509260,3.2,156.21,156.18,3.2005]
[1727374509760,3.2002,156.2,156.18,3.2005]
[1727374509961,15.36,156.24,156.13,15.36]
[1727374510362,3.2001,156.21,156.13,15.36]
[1727374510862,3.2001,156.21,156.18,3.2005]
[1727374511064,3.1998,156.22,156.13,21.8536945]
[1727374511364,3.1998,156.22,156.13,15.36]
[1727374511564,3.2,156.21,156.13,15.36]
[1727374511965,3.2,156.21,156.13,21.85478657]
[1727374512263,3.1998,156.22,156.15,15.36]
[1727374512960,23.0395,156.26,156.15,15.36]
[1727374512961,38.3995,156.26,156.15,15.36]
[1727374513371,3.8095,156.26,156.17,15.36]
[1727374513560,3.8095,156.26,156.19,15.36]
[1727374513863,3.8095,156.26,156.15,6.4022]
[1727374513864,2.5399,156.26,156.24,3.1993]
[1727374514163,2.5399,156.26,156.19,15.36]
[1727374514469,2.5399,156.26,156.21,15.36]
[1727374514863,2.5399,156.26,156.23,3.1995]
[1727374515162,7.07,156.25,156.23,3.1995]
[1727374515368,7.07,156.25,156.19,15.36]
[1727374515668,10.2693,156.25,156.21,3.1999]
[1727374516170,10.2693,156.25,156.22,3.1998]
[1727374516357,10.2693,156.25,156.19,15.36]
[1727374516562,3.1994,156.24,156.19,15.36]
[1727374516765,7.07,156.25,156.19,15.36]
[1727374516766,7.07,156.25,156.21,3.1998]
[1727374517165,10.2693,156.25,156.21,3.1998]
[1727374520866,7.07,156.25,156.19,15.36]
[1727374521364,7.07,156.25,156.18,3.15889693]
[1727374521365,7.07,156.25,156.2,15.36]
[1727374522064,7.07,156.25,156.21,3.24635744]
[1727374522369,7.07,156.25,156.24,3.1994]
[1727374523768,7.07,156.25,156.23,3.1995]
[1727374523969,7.07,156.25,156.16,32.25797643]
[1727374524264,7.07,156.25,156.18,15.36]
[1727374524462,7.07,156.25,156.19,3.25704544]
[1727374524868,7.07,156.25,156.24,3.1994]
[1727374536376,7.07,156.25,156.23,3.1995]
[1727374536580,3.1989,156.27,156.2,15.36]
[1727374536779,1.383,156.28,156.2,15.36]
[1727374537177,3.199,156.26,156.2,15.36]
[1727374537581,3.199,156.26,156.18,18.57096876]
[1727374537875,20.613,156.28,156.18,15.36]
[1727374538178,1.383,156.28,156.22,15.36]
[1727374538373,7.65,156.27,156.26,3.1989]
[1727374538681,7.65,156.27,156.26,18.5589]
[1727374542178,7.65,156.27,156.26,3.1989]
[1727374544386,12.76,156.27,156.26,3.1989]
[1727374551892,12.76,156.27,156.25,3.199]
[1727374552284,12.76,156.27,156.26,3.1989]
[1727374558404,12.76,156.27,156.26,13.0189]
[1727374565501,2.6037,156.33,156.32,3.1977]
[1727374567305,2.6037,156.33,156.32,13.0177]
[1727374567902,2.6037,156.33,156.32,3.1977]
[1727374568318,9.82,156.36,156.34,3.1972]
[1727374568511,9.82,156.37,156.33,9.82]
[1727374568910,9.82,156.37,156.35,3.197]
[1727374570709,9.82,156.36,156.35,3.197]
[1727374571710,9.82,156.36,156.34,3.1972]
[1727374572110,3.1967,156.37,156.34,3.1972]
[1727374572313,13.0167,156.37,156.34,3.1972]
[1727374572815,13.0167,156.37,156.35,3.1971]
[1727374573217,4.0058,156.39,156.36,3.1968]
[1727374573516,9.82,156.37,156.36,3.1968]
[1727374574509,4.0058,156.39,156.36,3.1968]
[1727374574709,3.1966,156.38,156.36,3.1968]
[1727374574908,9.82,156.37,156.36,3.1968]
[1727374576315,4.0058,156.39,156.35,9.82]
[1727374576715,9.82,156.38,156.37,3.1967]
[1727374577921,9.82,156.38,156.33,9.82]
[1727374578221,9.82,156.37,156.33,9.82]
[1727374578816,9.82,156.37,156.26,6.3978]
[1727374579016,9.82,156.37,156.32,9.82]
[1727374579817,9.82,156.37,156.33,3.1974]
[1727374580019,9.82,156.37,156.32,9.82]
[1727374580020,9.82,156.35,156.3,9.82]
[1727374580211,9.82,156.35,156.31,3.1978]
[1727374580417,6.68,156.34,156.31,3.1978]
[1727374581015,6.68,156.34,156.33,3.1975]
[1727374582425,6.68,156.34,156.29,9.82]
[1727374582626,9.82,156.33,156.29,9.82]
[1727374582820,9.82,156.33,156.3,3.1981]
[1727374583026,9.82,156.33,156.29,9.82]
[1727374583430,9.82,156.33,156.31,3.1978]
[1727374584525,9.8775,156.34,156.31,3.1978]
[1727374584721,19.6975,156.34,156.31,3.1978]
[1727374585234,9.82,156.32,156.22,76.76]
[1727374585528,9.82,156.3,156.25,9.82]
[1727374586227,13.0182,156.3,156.27,3.1986]
[1727374586525,3.1982,156.3,156.27,3.1986]
[1727374586726,9.82,156.29,156.25,9.82]
[1727374586933,9.82,156.31,156.26,9.82]
[1727374587132,5.11,156.3,156.26,9.82]
[1727374587524,5.11,156.3,156.28,3.1984]
[1727374588327,5.11,156.3,156.29,3.1983]
[1727374590737,5.11,156.3,156.26,9.82]
[1727374591324,5.11,156.3,156.28,3.1984]
[1727374591727,5.11,156.3,156.26,9.82]
[1727374592232,5.11,156.3,156.29,3.1983]
[1727374593234,5.11,156.3,156.27,3.1987]
[1727374593536,14.93,156.3,156.27,3.1987]
[1727374594232,14.93,156.3,156.28,3.1985]
[1727374594431,3.1985,156.29,156.24,6.3690563]
[1727374594735,9.82,156.27,156.23,9.82]
[1727374595637,9.82,156.28,156.26,3.1988]
[1727374596636,9.82,156.28,156.27,3.1987]
[1727374597738,9.82,156.28,156.26,3.1989]
[1727374599733,3.1984,156.29,156.26,3.1989]
[1727374599934,9.82,156.27,156.25,3.1991]
[1727374600336,9.82,156.27,156.2,62.5419551]
[1727374600337,9.82,156.26,156.24,3.1993]
[1727374600545,9.82,156.27,156.22,16.19587349]
[1727374600842,9.82,156.27,156.22,9.82]
[1727374601031,9.82,156.26,156.22,16.19587349]
[1727374601235,9.82,156.26,156.22,9.82]
[1727374601436,9.82,156.28,156.22,16.19587349]
[1727374601736,9.82,156.27,156.22,9.82]
[1727374601937,9.82,156.27,156.21,9.82]
[1727374602134,9.82,156.27,156.22,6.3762973]
[1727374602332,9.82,156.25,156.23,3.1996]
[1727374602742,9.82,156.25,156.22,6.3762973]
[1727374603639,9.82,156.25,156.21,9.82]
[1727374603844,9.82,156.25,156.24,3.1994]
[1727374604142,9.82,156.27,156.22,6.37655635]
[1727374604341,9.82,156.26,156.24,3.1992]
[1727374606334,9.82,156.26,156.25,3.1991]
[1727374606940,9.82,156.26,156.24,3.1993]
[1727374607542,9.82,156.26,156.23,3.1995]
[1727374607745,9.82,156.26,156.22,6.37965368]
[1727374607938,9.82,156.26,156.21,9.82]
[1727374608143,9.82,156.26,156.22,6.37965368]
[1727374608345,9.82,156.26,156.21,9.82]
[1727374608544,9.82,156.26,156.23,3.1995]
[1727374608746,9.82,156.26,156.21,9.82]
[1727374608938,9.82,156.26,156.22,6.37982063]
[1727374609142,9.82,156.26,156.24,3.1992]
[1727374611148,1.2881,156.27,156.24,3.1992]
[1727374611149,9.82,156.25,156.24,3.1992]
[1727374612647,1.2881,156.27,156.26,3.1989]
[1727374612847,11.1081,156.27,156.26,3.1989]
[1727374613743,11.1081,156.27,156.25,3.199]
[1727374614141,11.1081,156.27,156.22,9.82]
[1727374615252,11.1081,156.27,156.25,3.199]
[1727374615650,11.1081,156.27,156.26,3.1989]
[1727374615849,9.82,156.28,156.24,9.82]
[1727374617349,9.82,156.28,156.27,3.1987]
[1727374621353,1.3806,156.32,156.29,3.1982]
[1727374621551,9.82,156.31,156.26,9.82]
[1727374621947,9.82,156.3,156.29,3.1982]
[1727374624554,9.82,156.3,156.28,3.1984]
[1727374624946,9.82,156.29,156.24,6.38151227]
[1727374625150,1.3806,156.32,156.2,16.20177364]
[1727374625151,9.82,156.25,156.2,16.20177364]
[1727374625348,9.82,156.25,156.21,6.38177364]
[1727374625557,9.82,156.26,156.21,9.82]
[1727374625752,9.82,156.26,156.24,3.1992]
[1727374627256,7.67,156.25,156.24,3.1992]
[1727374630754,7.67,156.25,156.2,6.380112]
[1727374630954,9.82,156.22,156.17,6.38085207]
[1727374631154,9.82,156.18,156.12,9.82]
[1727374631359,9.82,156.16,156.13,6.37991807]
[1727374631651,9.82,156.16,156.12,9.82]
[1727374631652,9.82,156.16,156.14,6.37991807]
[1727374631853,9.82,156.16,156.13,6.38022134]
[1727374632053,9.82,156.14,156.02,79.372]
[1727374632257,9.82,156.14,156.09,9.82]
[1727374632451,9.82,156.14,156.12,3.2018]
[1727374632647,1.3764,156.18,156.12,9.82]
[1727374632848,9.82,156.16,156.11,9.82]
[1727374633154,9.82,156.15,156.12,3.2017]
[1727374633561,9.82,156.15,156.1,9.82]
[1727374633747,9.82,156.13,156.08,9.82]
[1727374635351,9.82,156.13,156.12,3.2018]
[1727374638059,5.9037,156.17,156.1,9.82]
[1727374638262,9.82,156.15,156.1,9.82]
[1727374638659,9.82,156.15,156.14,3.2014]
[1727374640767,9.82,156.15,156.13,3.2015]
[1727374641060,9.82,156.14,156.13,3.2015]
[1727374645564,9.82,156.14,156.03,6.4073]
[1727374645767,9.82,156.09,156.05,9.82]
[1727374645996,9.82,156.08,156.03,19.41500313]
[1727374646167,9.82,156.08,156.07,3.2028]
[1727374647171,9.82,156.08,156.06,3.2029]
[1727374647376,9.82,156.06,156.01,9.82]
[1727374647675,4.62806314,156.12,156.02,9.82]
[1727374647872,9.82,156.09,156.04,9.82]
[1727374648271,4.5523,156.12,156.08,3.2026]
[1727374648473,9.82,156.09,156.08,3.2026]
[1727374649165,9.82,156.11,156.1,3.2022]
[1727374649366,11.1705,156.12,156.07,9.82]
[1727374649671,11.1705,156.12,156.11,3.202]
[1727374650168,9.82,156.14,156.13,3.2016]
[1727374650978,1.2716,156.16,156.1,9.82]
[1727374651175,11.0916,156.16,156.1,9.82]
[1727374651673,11.0916,156.16,156.15,3.2012]
[1727374652400,16.6516,156.16,156.14,3.2013]
[1727374656981,16.6516,156.16,156.15,3.2012]
[1727374657483,16.6516,156.16,156.08,3.15156437]
[1727374657785,16.6516,156.16,156.14,3.2013]
[1727374658176,19.8527,156.16,156.14,3.2013]
[1727374658382,19.8527,156.16,156.08,3.25484252]
[1727374658585,19.8527,156.16,156.06,16.7215]
[1727374658977,12.0612,156.15,156.13,3.2014]
[1727374659387,8.86,156.15,156.13,3.2014]
[1727374659684,12.0612,156.15,156.13,3.2014]
[1727374659983,15.38,156.14,156.06,1.3415]
[1727374660277,3.2017,156.13,156.06,1.3415]
[1727374660678,3.2018,156.12,156.1,3.2021]
[1727374660875,19.23,156.13,156.1,3.2021]
[1727374661984,19.23,156.13,156.04,15.38]
[1727374662186,15.38,156.12,156.02,15.38]
[1727374662787,15.38,156.12,156.1,3.2021]
[1727374664989,18.5819,156.12,156.09,3.2023]
[1727374665885,18.5819,156.12,156.1,3.2022]
[1727374666387,23.7019,156.12,156.1,3.2022]
[1727374668785,20.5,156.12,156.1,3.2022]
[1727374669792,20.5,156.12,156.03,6.4073]
[1727374671093,20.5,156.12,156.1,3.2021]
[1727374671292,5.12,156.12,156.04,15.38]
[1727374671592,5.12,156.12,156.11,3.202]
[1727374674196,23.7019,156.12,156.1,3.2021]
[1727374674493,9.84,156.11,156.1,3.2021]
[1727374675491,9.84,156.11,156.01,9.1047]
[1727374675693,9.84,156.07,156.02,9.84]
[1727374676396,9.84,156.06,156.01,18.9447]
[1727374676796,9.84,156.07,156.02,9.84]
[1727374676993,9.84,156.07,156.03,9.84]
[1727374677292,9.84,156.09,156.03,9.84]
[1727374677493,9.84,156.09,156.08,3.2025]
[1727374682202,1.3789,156.1,156.09,3.2024]
[1727374682497,1.3789,156.1,156.0,5.97980323]
[1727374682498,5.12,156.12,156.08,9.84]
[1727374683098,5.12,156.12,156.11,3.202]
[1727374684101,22.4289,156.26,156.22,3.1996]
[1727374684401,9.84,156.23,156.22,3.1996]
[1727374685203,9.84,156.23,156.21,3.1999]
[1727374685392,9.84,156.22,156.21,3.1999]
[1727374687506,9.84,156.22,156.16,9.84]
[1727374687806,9.84,156.2,156.16,9.84]
[1727374688401,9.84,156.21,156.16,9.84]
[1727374688906,9.84,156.18,156.11,287.0]
[1727374689113,9.84,156.18,156.13,9.84]
[1727374689502,9.84,156.18,156.16,3.2009]
[1727374689802,9.84,156.18,156.13,9.84]
[1727374690006,11.1334,156.2,156.14,9.84]
[1727374690197,9.84,156.21,156.15,9.84]
[1727374690403,15.37,156.24,156.15,15.37]
[1727374690603,34.6,156.24,156.15,15.37]
[1727374691306,3.1997,156.23,156.19,3.2002]
[1727374692505,3.1997,156.23,156.2,3.2001]
[1727374693009,3.1998,156.22,156.19,3.2003]
[1727374694505,3.2001,156.21,156.18,3.2005]
[1727374694709,18.5701,156.21,156.18,3.2005]
[1727374694909,15.37,156.19,156.1,15.37]
[1727374695707,15.37,156.19,156.16,3.2009]
[1727374695708,18.5705,156.19,156.16,3.2009]
[1727374696100,18.5705,156.19,156.17,3.2007]
[1727374696509,15.37,156.19,156.17,3.2007]
[1727374696897,3.20440509,156.18,156.08,24.98154864]
[1727374697099,3.20440509,156.18,156.08,21.775]
[1727374697100,1.3822,156.18,156.08,21.775]
[1727374697506,3.2009,156.17,156.14,3.2013]
[1727374697806,15.37,156.16,156.07,76.84]
[1727374698207,3.2013,156.15,156.12,3.2017]
[1727374698507,10.6613,156.15,156.12,3.2017]
[1727374698704,3.2015,156.14,156.11,3.2019]
[1727374699109,18.5715,156.14,156.11,3.2019]
[1727374699305,15.37,156.14,156.06,15.37]
[1727374699709,10.6613,156.15,156.06,15.37]
[1727374699913,10.6613,156.15,156.12,3.2016]
[1727374700508,7.46,156.15,156.06,15.37]
[1727374700709,7.46,156.15,156.08,15.37]
[1727374700913,7.46,156.15,156.08,18.60937124]
[1727374701112,7.46,156.15,156.14,3.2014]
[1727374701509,7.46,156.15,156.08,18.60937124]
[1727374702009,7.46,156.15,156.13,3.2015]
[1727374702215,7.46,156.15,156.08,18.60937124]
[1727374702807,7.46,156.15,156.13,3.2014]
[1727374705914,7.46,156.15,156.14,3.2014]
[1727374706319,7.46,156.15,156.08,3.23937124]
[1727374706520,7.46,156.15,156.07,6.21335658]
[1727374706821,7.46,156.15,156.08,3.20479098]
[1727374707710,7.46,156.15,156.13,3.2015]
[1727374709217,12.58,156.15,156.13,3.2015]
[1727374709521,15.7812,156.15,156.13,3.2015]
[1727374709820,12.58,156.15,156.13,3.2015]
[1727374711418,15.37,156.14,156.07,6.21345433]
[1727374711619,15.37,156.12,156.05,59.36613499]
[1727374711915,18.572,156.12,156.05,59.36613499]
[1727374712123,18.572,156.12,156.09,3.2023]
[1727374712124,15.37,156.12,156.09,3.2023]
[1727374712323,9.84,156.1,156.09,3.2023]
[1727374712513,9.84,156.1,156.08,3.2025]
[1727374712719,9.84,156.09,156.01,87.787]
[1727374712920,2.6533,156.14,156.02,6.21510543]
[1727374712921,9.84,156.06,156.02,6.21510543]
[1727374713116,9.84,156.08,156.03,9.84]
[1727374713320,9.84,156.08,156.02,6.21510543]
[1727374713821,9.84,156.08,156.03,9.84]
[1727374714321,18.5824,156.1,156.01,1.107]
[1727374714520,15.38,156.1,156.0,18.61400323]
[1727374714724,15.38,156.1,156.01,6.21389697]
[1727374714922,15.38,156.08,155.99,59.39446461]
[1727374715227,15.38,156.08,155.99,62.64714142]
[1727374715818,15.38,156.08,155.99,78.02714142]
[1727374716521,1.33,156.09,155.99,78.02714142]
[1727374716719,1.33,156.09,156.01,15.38]
[1727374717120,15.38,156.12,156.01,15.38]
[1727374717523,15.38,156.12,156.01,21.592361]
[1727374717829,3.2022,156.11,156.01,15.38]
[1727374718247,3.2022,156.11,156.08,3.2026]
[1727374718422,15.38,156.12,156.03,15.38]
[1727374718631,1.3108,156.13,156.03,15.38]
[1727374718941,1.3108,156.13,156.09,3.2023]
[1727374719226,1.3108,156.13,156.03,15.38]
[1727374719422,1.3108,156.13,156.09,3.2024]
[1727374720230,3.2019,156.12,156.09,3.2024]
[1727374720431,1.3108,156.13,156.09,3.2024]
[1727374720724,1.3108,156.13,156.1,3.2022]
[1727374721327,1.3108,156.13,156.11,3.2019]
[1727374721531,1.3627,156.14,156.04,15.38]
[1727374721735,1.3627,156.14,156.06,15.38]
[1727374721936,12.58,156.15,156.13,3.2014]
[1727374722142,12.58,156.15,156.07,3.15444748]
[1727374722531,12.58,156.15,156.13,3.2016]
[1727374726043,15.7812,156.15,156.12,3.2017]
[1727374726740,12.58,156.15,156.07,3.15897001]
[1727374727744,15.7812,156.15,156.12,3.2017]
[1727374729947,15.38,156.14,156.03,6.407]
[1727374730138,34.61,156.14,156.03,6.407]
[1727374730550,18.5822,156.11,156.03,6.21015822]
[1727374730748,18.5822,156.11,156.02,16.4875]
[1727374731752,18.5822,156.11,156.08,3.2026]
[1727374733250,18.5822,156.11,156.09,3.2024]
[1727374733552,5.12,156.15,156.07,3.12710567]
[1727374733744,5.12,156.15,156.07,15.38]
[1727374733949,5.12,156.15,156.12,3.2017]
[1727374734150,8.3212,156.15,156.12,3.2017]
[1727374734947,3.2015,156.14,156.11,3.2019]
[1727374735553,39.73,156.15,156.11,3.2019]
[1727374736053,3.2015,156.14,156.11,3.2019]
[1727374736851,3.2016,156.13,156.11,3.2019]
[1727374737053,3.2016,156.13,156.1,3.2022]
[1727374737252,3.2019,156.12,156.05,15.38]
[1727374738758,3.2017,156.13,156.1,3.2022]
[1727374739455,34.61,156.15,156.05,15.38]
[1727374739657,1.3411,156.12,156.03,15.38]
[1727374740359,1.3411,156.12,156.08,3.2025]
[1727374740360,4.5431,156.12,156.08,3.2025]
[1727374740558,1.3411,156.12,156.03,15.38]
[1727374740752,1.3411,156.12,156.1,3.202]
[1727374740958,1.3411,156.12,156.04,15.38]
[1727374741563,3.2012,156.16,156.06,15.38]
[1727374741962,3.2012,156.16,156.13,3.2014]
[1727374742358,3.2012,156.15,156.06,16.7064]
[1727374742763,18.5815,156.14,156.11,3.2019]
[1727374742962,18.5815,156.14,156.06,1.3264]
[1727374742963,15.38,156.14,156.06,1.3264]
[1727374743962,18.5816,156.14,156.06,1.3264]
[1727374744167,15.38,156.14,156.06,1.3264]
[1727374744367,15.38,156.13,156.03,15.38]
[1727374744762,15.38,156.13,156.03,21.58945527]
[1727374744969,15.38,156.13,156.03,15.38]
[1727374745471,15.38,156.15,156.05,15.38]
[1727374745868,3.2015,156.14,156.1,3.202]
[1727374747567,3.2016,156.13,156.1,3.202]
[1727374749274,3.2018,156.12,156.1,3.202]
[1727374749482,15.38,156.12,156.03,15.38]
[1727374749773,3.2025,156.09,156.01,16.7069]
[1727374749964,15.38,156.09,156.04,3.2033]
[1727374750164,15.38,156.09,155.98,21.7894]
[1727374750384,15.38,156.09,156.0,15.38]
[1727374750561,1.2801,156.1,156.0,15.38]
[1727374750779,1.2801,156.1,156.0,21.59153961]
[1727374752273,3.2024,156.09,156.05,3.2031]
[1727374753575,4.4824,156.1,156.06,3.2028]
[1727374753768,1.2801,156.1,156.06,3.2028]
[1727374754573,15.38,156.09,156.06,3.2028]
[1727374754773,18.5825,156.09,156.06,3.2028]
[1727374756078,23.7025,156.09,156.06,3.2028]
[1727374756375,3.2026,156.08,156.05,3.2032]
[1727374756579,20.5,156.09,156.05,3.2032]
[1727374757079,3.2028,156.08,156.05,3.2032]
[1727374757683,18.5832,156.06,155.99,60.67326461]
[1727374758275,18.5832,156.06,156.03,3.2035]
[1727374758677,15.38,156.06,155.99,60.67326461]
[1727374759176,15.38,156.06,156.04,3.2034]
[1727374762276,9.84,156.05,156.04,3.2034]
[1727374763184,9.84,156.05,156.03,3.2036]
[1727374763380,9.84,156.04,156.03,3.2036]
[1727374764988,9.84,156.04,156.02,3.2038]
[1727374765285,9.84,156.03,155.97,9.84]
[1727374765675,24.35,156.09,155.97,9.84]
[1727374765983,9.84,156.04,155.99,9.84]
[1727374766377,9.84,156.04,156.03,3.2035]
[1727374769482,24.35,156.09,155.97,6.21460327]
[1727374769687,9.84,156.0,155.95,19.21038224]
[1727374769997,9.84,156.0,155.99,3.2045]
[1727374770189,1.2944,156.04,155.95,16.05460327]
[1727374770392,9.84,156.0,155.95,16.05460327]
[1727374770886,9.84,156.0,155.99,3.2045]
[1727374771793,18.97,156.0,155.99,3.2045]
[1727374774294,18.97,156.0,155.93,3.12702673]
[1727374774609,9.84,155.98,155.93,12.96702673]
[1727374774787,9.13,156.0,155.95,9.84]
[1727374774989,9.84,155.99,155.95,9.84]
[1727374775695,9.84,155.99,155.94,9.84]
[1727374776395,9.84,155.98,155.92,6.21029466]
[1727374776590,9.84,155.98,155.93,13.09125703]
[1727374776892,9.84,155.98,155.93,9.84]
[1727374777098,9.84,155.99,155.98,3.2045]
[1727374781409,9.13,156.0,155.99,3.2045]
[1727374782806,9.13,156.0,155.99,13.0445]
[1727374783403,9.13,156.0,155.99,3.2045]
[1727374784306,9.13,156.0,155.99,13.0445]
[1727374784908,5.9318,156.0,155.99,13.0445]
[1727374797819,5.9318,156.0,155.99,3.2045]
[1727374798121,5.9318,156.0,155.99,13.0445]
[1727374799825,3.2031,156.06,155.99,9.84]
[1727374800024,13.0431,156.06,156.01,9.84]
[1727374800320,6.4,156.21,156.12,3.2017]
[1727374800523,1.3841,156.15,156.12,9.84]
[1727374800922,1.3841,156.15,156.08,3.25447717]
[1727374801123,1.3841,156.15,156.1,9.84]
[1727374801322,9.84,156.14,156.09,9.84]
[1727374802023,9.84,156.14,156.04,6.20694955]
[1727374802024,9.84,156.14,156.1,9.84]
[1727374802625,9.84,156.14,156.11,3.2019]
[1727374802822,5.12,156.13,156.11,3.2019]
[1727374803626,14.96,156.13,156.04,6.20694955]
[1727374803929,14.96,156.13,156.07,9.84]
[1727374804327,14.96,156.13,156.1,3.2022]
[1727374804519,14.96,156.13,156.07,9.84]
[1727374804717,14.96,156.13,156.08,9.84]
[1727374804922,5.12,156.13,156.09,9.84]
[1727374805924,5.12,156.13,156.12,13.0418]
[1727374808320,5.12,156.13,156.12,18.5718]
[1727374809824,2.6035,156.19,156.12,15.37]
[1727374810020,2.6035,156.19,156.13,15.37]
[1727374810528,1.2954,156.21,156.13,18.49585565]
[1727374810720,1.2954,156.21,156.13,3.12585565]
[1727374810922,1.2954,156.21,156.17,3.2006]
[1727374811123,1.2954,156.21,156.12,15.37]
[1727374811330,15.37,156.2,156.1,15.37]